[Event "Early-Titled-Tuesday-Blitz-August-29-2023"]
[Site "Chess.com"]
[Date "2023.08.29"]
[Round "8"]
[White "CalinGheorghiu"]
[Black "AquivaRubinstein"]
[Result "0-1"]
[WhiteElo "2349"]
[BlackElo "2479"]
[TimeControl "180+1"]
[EndTime "9:26:53 PDT"]
[Termination "AquivaRubinstein won on time"]

1. d4 {[%clk 0:03:00.9]} 1... Nf6 {[%clk 0:02:59.7]} 2. Nf3 {[%clk 0:02:57.7]}
2... c5 {[%clk 0:02:59.1]} 3. d5 {[%clk 0:02:53.9]} 3... b5 {[%clk 0:02:59.3]}
4. c4 {[%clk 0:02:47.7]} 4... e6 {[%clk 0:02:59.6]} 5. Nc3 {[%clk 0:02:35.6]}
5... b4 {[%clk 0:02:59.9]} 6. Nb1 {[%clk 0:02:30.7]} 6... Bb7 {[%clk 0:02:53.5]}
7. dxe6 {[%clk 0:02:17.4]} 7... fxe6 {[%clk 0:02:53.8]} 8. g3 {[%clk 0:02:15.3]}
8... Be7 {[%clk 0:02:53]} 9. Bg2 {[%clk 0:02:15.4]} 9... O-O {[%clk 0:02:53.6]}
10. O-O {[%clk 0:02:15.6]} 10... d5 {[%clk 0:02:47.3]} 11. cxd5 {[%clk
0:01:47.8]} 11... exd5 {[%clk 0:02:46.6]} 12. a3 {[%clk 0:01:46.3]} 12... a5
{[%clk 0:02:44.3]} 13. axb4 {[%clk 0:01:45.4]} 13... axb4 {[%clk 0:02:44.6]} 14.
Rxa8 {[%clk 0:01:45.5]} 14... Bxa8 {[%clk 0:02:45.5]} 15. b3 {[%clk 0:01:42]}
15... Ne4 {[%clk 0:02:31]} 16. Nfd2 {[%clk 0:01:36.3]} 16... Nc3 {[%clk
0:02:21]} 17. Nxc3 {[%clk 0:01:36]} 17... bxc3 {[%clk 0:02:21.1]} 18. Nc4 {[%clk
0:01:31.7]} 18... Kh8 {[%clk 0:01:49]} 19. Ne3 {[%clk 0:01:16.2]} 19... Bg5
{[%clk 0:01:42.9]} 20. f4 {[%clk 0:01:11.5]} 20... Bf6 {[%clk 0:01:43.1]} 21.
Nxd5 {[%clk 0:00:47.6]} 21... Bd4+ {[%clk 0:01:39.9]} 22. Ne3 {[%clk 0:00:47.7]}
22... Nc6 {[%clk 0:01:06.5]} 23. Kh1 {[%clk 0:00:45.2]} 23... Nb4 {[%clk
0:01:05]} 24. Nc2 {[%clk 0:00:39.7]} 24... Bxg2+ {[%clk 0:01:01.1]} 25. Kxg2
{[%clk 0:00:39.6]} 25... Qd5+ {[%clk 0:01:01.3]} 26. Rf3 {[%clk 0:00:38.9]}
26... Qxb3 {[%clk 0:00:58.9]} 27. Ne3 {[%clk 0:00:32.6]} 27... Qxd1 {[%clk
0:00:40.5]} 28. Nxd1 {[%clk 0:00:32.5]} 28... c2 {[%clk 0:00:39.6]} 29. Nc3
{[%clk 0:00:24]} 29... Ra8 {[%clk 0:00:29.6]} 30. Nb5 {[%clk 0:00:15.9]} 30...
Ra1 {[%clk 0:00:21.3]} 31. Nxd4 {[%clk 0:00:12.3]} 31... cxd4 {[%clk 0:00:16.8]}
32. Rb3 {[%clk 0:00:07.1]} 32... Rb1 {[%clk 0:00:16.4]} 33. Ra3 {[%clk
0:00:02.8]} 33... h6 {[%clk 0:00:16.8]} 34. Bd2 {[%clk 0:00:01.4]} 34... Rd1
{[%clk 0:00:13.4]} 0-1

[Event "Early-Titled-Tuesday-Blitz-August-29-2023"]
[Site "Chess.com"]
[Date "2023.08.29"]
[Round "8"]
[White "MBA_CHESS_2021"]
[Black "KNVB"]
[Result "1-0"]
[WhiteElo "2335"]
[BlackElo "2779"]
[TimeControl "180+1"]
[EndTime "9:26:54 PDT"]
[Termination "MBA_CHESS_2021 won by resignation"]

1. d4 {[%clk 0:03:00.9]} 1... Nf6 {[%clk 0:02:59.4]} 2. c4 {[%clk 0:03:00.3]}
2... e6 {[%clk 0:02:58.8]} 3. Nf3 {[%clk 0:02:59.8]} 3... b6 {[%clk 0:02:57.6]}
4. Nc3 {[%clk 0:02:59]} 4... Bb4 {[%clk 0:02:55.9]} 5. Bd2 {[%clk 0:02:56.6]}
5... Bb7 {[%clk 0:02:55.5]} 6. e3 {[%clk 0:02:57]} 6... O-O {[%clk 0:02:40.4]}
7. Be2 {[%clk 0:02:56.6]} 7... d6 {[%clk 0:02:34.3]} 8. O-O {[%clk 0:02:52.7]}
8... Nbd7 {[%clk 0:02:31.4]} 9. Nb5 {[%clk 0:02:50]} 9... Bxd2 {[%clk
0:02:30.5]} 10. Nxd2 {[%clk 0:02:48.4]} 10... a6 {[%clk 0:02:28.8]} 11. Nc3
{[%clk 0:02:48]} 11... c5 {[%clk 0:02:27.9]} 12. Bf3 {[%clk 0:02:47.6]} 12...
cxd4 {[%clk 0:01:50.2]} 13. exd4 {[%clk 0:02:45.1]} 13... Bxf3 {[%clk
0:01:44.1]} 14. Qxf3 {[%clk 0:02:44.2]} 14... Qc7 {[%clk 0:01:43.4]} 15. b3
{[%clk 0:02:42.6]} 15... Rac8 {[%clk 0:01:12.3]} 16. Rac1 {[%clk 0:02:39.6]}
16... b5 {[%clk 0:01:04.3]} 17. a4 {[%clk 0:02:01.2]} 17... bxc4 {[%clk
0:00:57.7]} 18. bxc4 {[%clk 0:01:59.1]} 18... Qa5 {[%clk 0:00:47.8]} 19. Qg3
{[%clk 0:01:48.9]} 19... Rfd8 {[%clk 0:00:38.3]} 20. Qxd6 {[%clk 0:01:38.4]}
20... Nb6 {[%clk 0:00:16.1]} 21. Qe7 {[%clk 0:00:55.9]} 21... Rd7 {[%clk
0:00:09.9]} 22. Nb3 {[%clk 0:00:25.7]} 22... Qxc3 {[%clk 0:00:04]} 23. Qxd7
{[%clk 0:00:25.4]} 23... Qxb3 {[%clk 0:00:04.4]} 24. Qb7 {[%clk 0:00:25.3]}
24... Qxa4 {[%clk 0:00:01.2]} 25. c5 {[%clk 0:00:25.2]} 25... Nbd5 {[%clk
0:00:01.2]} 26. Qxc8+ {[%clk 0:00:25]} 26... Ne8 {[%clk 0:00:01.7]} 27. c6
{[%clk 0:00:24.6]} 27... Kf8 {[%clk 0:00:01.6]} 28. Qd7 {[%clk 0:00:21.4]} 28...
Qa5 {[%clk 0:00:01.6]} 29. Rfd1 {[%clk 0:00:19.4]} 29... g6 {[%clk 0:00:01.4]}
30. h3 {[%clk 0:00:19.2]} 30... Ndc7 {[%clk 0:00:01.7]} 31. d5 {[%clk
0:00:17.2]} 31... exd5 {[%clk 0:00:01.4]} 32. Re1 {[%clk 0:00:16.2]} 32... Ne6
{[%clk 0:00:01.9]} 33. Rxe6 {[%clk 0:00:15.3]} 33... fxe6 {[%clk 0:00:02.3]} 34.
c7 {[%clk 0:00:14.6]} 34... Qd2 {[%clk 0:00:01.8]} 35. c8=Q {[%clk 0:00:12.4]}
35... Qxc1+ {[%clk 0:00:01.5]} 36. Qxc1 {[%clk 0:00:12]} 1-0

[Event "Early-Titled-Tuesday-Blitz-August-29-2023"]
[Site "Chess.com"]
[Date "2023.08.29"]
[Round "8"]
[White "Vesper2018"]
[Black "masterofpuppets2"]
[Result "0-1"]
[WhiteElo "2588"]
[BlackElo "2472"]
[TimeControl "180+1"]
[EndTime "9:26:54 PDT"]
[Termination "masterofpuppets2 won on time"]

1. e4 {[%clk 0:03:00.9]} 1... c5 {[%clk 0:02:59.6]} 2. Nc3 {[%clk 0:03:00.6]}
2... Nc6 {[%clk 0:02:59.5]} 3. Bb5 {[%clk 0:02:59.9]} 3... Nd4 {[%clk
0:02:59.5]} 4. Bc4 {[%clk 0:03:00.2]} 4... e6 {[%clk 0:02:59.6]} 5. Nge2 {[%clk
0:02:59.9]} 5... Nf6 {[%clk 0:02:59.2]} 6. O-O {[%clk 0:02:57.5]} 6... a6 {[%clk
0:02:59.5]} 7. a4 {[%clk 0:02:57.4]} 7... d5 {[%clk 0:02:59.1]} 8. exd5 {[%clk
0:02:57.8]} 8... exd5 {[%clk 0:02:59.4]} 9. Ba2 {[%clk 0:02:58.4]} 9... Nc6
{[%clk 0:02:44.4]} 10. d3 {[%clk 0:02:53.3]} 10... Nb4 {[%clk 0:02:34.6]} 11.
Bb3 {[%clk 0:02:51.2]} 11... Be7 {[%clk 0:02:30.2]} 12. a5 {[%clk 0:02:45.8]}
12... O-O {[%clk 0:02:29.4]} 13. Nf4 {[%clk 0:02:41.5]} 13... Bg4 {[%clk
0:02:14]} 14. f3 {[%clk 0:02:39.2]} 14... Bc8 {[%clk 0:02:01.3]} 15. Re1 {[%clk
0:02:28.4]} 15... Re8 {[%clk 0:01:48.8]} 16. Na4 {[%clk 0:02:23.7]} 16... Qxa5
{[%clk 0:01:38.5]} 17. c3 {[%clk 0:02:12.4]} 17... Nxd3 {[%clk 0:01:32.6]} 18.
Nxd3 {[%clk 0:01:55.8]} 18... c4 {[%clk 0:01:31.8]} 19. Bg5 {[%clk 0:01:41.4]}
19... Bf5 {[%clk 0:01:16.2]} 20. Bc2 {[%clk 0:01:17.4]} 20... cxd3 {[%clk
0:01:11.2]} 21. Bxd3 {[%clk 0:01:17.5]} 21... Bxd3 {[%clk 0:01:05.4]} 22. Qxd3
{[%clk 0:01:17.5]} 22... h6 {[%clk 0:00:59.7]} 23. Be3 {[%clk 0:01:10.1]} 23...
Qb5 {[%clk 0:00:54.9]} 24. Qd2 {[%clk 0:01:05]} 24... Rad8 {[%clk 0:00:47.7]}
25. Bd4 {[%clk 0:01:01.3]} 25... Nd7 {[%clk 0:00:45.1]} 26. b4 {[%clk
0:00:57.3]} 26... Bg5 {[%clk 0:00:40.9]} 27. Qa2 {[%clk 0:00:46.8]} 27... Bf6
{[%clk 0:00:39.1]} 28. Bf2 {[%clk 0:00:42]} 28... Ne5 {[%clk 0:00:30.9]} 29. Nc5
{[%clk 0:00:38]} 29... Nd3 {[%clk 0:00:27]} 30. Nxd3 {[%clk 0:00:37]} 30... Qxd3
{[%clk 0:00:26.7]} 31. Bb6 {[%clk 0:00:27.2]} 31... Rc8 {[%clk 0:00:22.4]} 32.
Rad1 {[%clk 0:00:13.7]} 32... Rxe1+ {[%clk 0:00:20.7]} 33. Rxe1 {[%clk
0:00:14.1]} 33... Qxc3 {[%clk 0:00:21]} 34. Qf2 {[%clk 0:00:07.6]} 34... Qxb4
{[%clk 0:00:19.6]} 35. h3 {[%clk 0:00:06.6]} 35... d4 {[%clk 0:00:19.8]} 36. Rd1
{[%clk 0:00:06.7]} 36... Qxb6 {[%clk 0:00:19.7]} 0-1

[Event "Early-Titled-Tuesday-Blitz-August-29-2023"]
[Site "Chess.com"]
[Date "2023.08.29"]
[Round "8"]
[White "AlexanderL"]
[Black "Druid24"]
[Result "1-0"]
[WhiteElo "2848"]
[BlackElo "2667"]
[TimeControl "180+1"]
[EndTime "9:26:59 PDT"]
[Termination "AlexanderL won on time"]

1. Nf3 {[%clk 0:02:24.5]} 1... Nf6 {[%clk 0:02:59.4]} 2. c4 {[%clk 0:02:19.6]}
2... g6 {[%clk 0:02:59.3]} 3. Nc3 {[%clk 0:02:02.7]} 3... Bg7 {[%clk 0:02:59.1]}
4. e4 {[%clk 0:02:01.8]} 4... d6 {[%clk 0:02:57]} 5. d4 {[%clk 0:02:01.8]} 5...
O-O {[%clk 0:02:56.5]} 6. Be2 {[%clk 0:02:01.9]} 6... e5 {[%clk 0:02:54.8]} 7.
O-O {[%clk 0:02:01.6]} 7... Nbd7 {[%clk 0:02:48.3]} 8. Qc2 {[%clk 0:01:56.7]}
8... exd4 {[%clk 0:02:40.6]} 9. Nxd4 {[%clk 0:01:55.8]} 9... Re8 {[%clk
0:02:41.1]} 10. Rd1 {[%clk 0:01:55.1]} 10... Nc5 {[%clk 0:02:36.1]} 11. f3
{[%clk 0:01:53.9]} 11... a5 {[%clk 0:02:36.5]} 12. Be3 {[%clk 0:01:51.3]} 12...
b6 {[%clk 0:02:18.2]} 13. Bf1 {[%clk 0:01:48.2]} 13... Bb7 {[%clk 0:02:15.7]}
14. Rd2 {[%clk 0:01:45.1]} 14... Nh5 {[%clk 0:02:07.1]} 15. Bf2 {[%clk
0:01:40.8]} 15... Nf4 {[%clk 0:01:51.3]} 16. Rad1 {[%clk 0:01:29.5]} 16... Qg5
{[%clk 0:01:43.7]} 17. Kh1 {[%clk 0:01:15.1]} 17... h5 {[%clk 0:01:38]} 18. Be3
{[%clk 0:01:12.9]} 18... Qf6 {[%clk 0:01:18.8]} 19. Ndb5 {[%clk 0:00:53.2]}
19... Re7 {[%clk 0:01:13.4]} 20. Nd5 {[%clk 0:00:48.9]} 20... Nxd5 {[%clk
0:01:08.6]} 21. cxd5 {[%clk 0:00:49.6]} 21... Rae8 {[%clk 0:00:48.6]} 22. b3
{[%clk 0:00:42.6]} 22... h4 {[%clk 0:00:46]} 23. h3 {[%clk 0:00:32.7]} 23... Qe5
{[%clk 0:00:44.3]} 24. a3 {[%clk 0:00:27.6]} 24... Qg3 {[%clk 0:00:39]} 25. Bf2
{[%clk 0:00:24.3]} 25... Qg5 {[%clk 0:00:37.1]} 26. b4 {[%clk 0:00:23.8]} 26...
axb4 {[%clk 0:00:36.8]} 27. axb4 {[%clk 0:00:24.7]} 27... Na6 {[%clk 0:00:27.7]}
28. Qc4 {[%clk 0:00:23.9]} 28... Be5 {[%clk 0:00:27.2]} 29. Nd4 {[%clk
0:00:20.8]} 29... Qf4 {[%clk 0:00:18.5]} 30. Bg1 {[%clk 0:00:20.4]} 30... Nb8
{[%clk 0:00:17.7]} 31. Ra2 {[%clk 0:00:17]} 31... Nd7 {[%clk 0:00:16.7]} 32. Ra7
{[%clk 0:00:16.9]} 32... Bc8 {[%clk 0:00:06.4]} 33. Rxc7 {[%clk 0:00:15]} 33...
Nf6 {[%clk 0:00:04.4]} 34. Rxe7 {[%clk 0:00:13.7]} 34... Nh5 {[%clk 0:00:05.3]}
35. Rxe8+ {[%clk 0:00:13.3]} 35... Kh7 {[%clk 0:00:04.4]} 36. Ne2 {[%clk
0:00:13.4]} 36... Qg5 {[%clk 0:00:01.9]} 37. Qxc8 {[%clk 0:00:11.9]} 1-0

[Event "Early-Titled-Tuesday-Blitz-August-29-2023"]
[Site "Chess.com"]
[Date "2023.08.29"]
[Round "8"]
[White "santosalberto1987"]
[Black "GMForgacs"]
[Result "1-0"]
[WhiteElo "2553"]
[BlackElo "2434"]
[TimeControl "180+1"]
[EndTime "9:26:59 PDT"]
[Termination "santosalberto1987 won on time"]

1. e4 {[%clk 0:02:48.2]} 1... e5 {[%clk 0:03:00.2]} 2. Nf3 {[%clk 0:02:38.8]}
2... Nc6 {[%clk 0:03:00.1]} 3. Bc4 {[%clk 0:02:34.8]} 3... Nf6 {[%clk
0:02:59.9]} 4. d3 {[%clk 0:02:33.8]} 4... h6 {[%clk 0:02:59.8]} 5. c3 {[%clk
0:02:33.2]} 5... d6 {[%clk 0:03:00.2]} 6. O-O {[%clk 0:02:33.4]} 6... g5 {[%clk
0:03:00.9]} 7. b4 {[%clk 0:02:29.2]} 7... Bg7 {[%clk 0:03:01]} 8. Nbd2 {[%clk
0:02:27]} 8... O-O {[%clk 0:03:00]} 9. Re1 {[%clk 0:02:26]} 9... g4 {[%clk
0:02:59.1]} 10. Nh4 {[%clk 0:02:25.4]} 10... Nxe4 {[%clk 0:02:59.5]} 11. dxe4
{[%clk 0:02:11.6]} 11... Qxh4 {[%clk 0:02:59.5]} 12. Nf1 {[%clk 0:02:11.6]}
12... Be6 {[%clk 0:02:51.6]} 13. Bxe6 {[%clk 0:02:10.3]} 13... fxe6 {[%clk
0:02:51.9]} 14. Be3 {[%clk 0:02:11.2]} 14... Ne7 {[%clk 0:02:44.7]} 15. a4
{[%clk 0:01:57.1]} 15... Rf7 {[%clk 0:02:42.1]} 16. b5 {[%clk 0:01:55.7]} 16...
Raf8 {[%clk 0:02:41.6]} 17. Bxa7 {[%clk 0:01:51.3]} 17... b6 {[%clk 0:02:39.4]}
18. a5 {[%clk 0:01:51.5]} 18... Qxf2+ {[%clk 0:02:20]} 19. Kh1 {[%clk
0:01:51.5]} 19... Ng6 {[%clk 0:02:12.2]} 20. axb6 {[%clk 0:01:41.4]} 20... cxb6
{[%clk 0:02:12.3]} 21. Ne3 {[%clk 0:01:37.8]} 21... h5 {[%clk 0:01:39]} 22. Bxb6
{[%clk 0:01:37]} 22... Nf4 {[%clk 0:01:16.6]} 23. Rf1 {[%clk 0:01:19.9]} 23...
Qh4 {[%clk 0:01:08]} 24. g3 {[%clk 0:01:19.5]} 24... Qh3 {[%clk 0:01:00.3]} 25.
gxf4 {[%clk 0:01:19.1]} 25... exf4 {[%clk 0:00:58]} 26. Nc4 {[%clk 0:00:44.6]}
26... f3 {[%clk 0:00:54.5]} 27. Ra2 {[%clk 0:00:38.8]} 27... g3 {[%clk
0:00:41.9]} 28. Kg1 {[%clk 0:00:20.2]} 28... f2+ {[%clk 0:00:33.8]} 29. Rfxf2
{[%clk 0:00:20.1]} 29... gxf2+ {[%clk 0:00:27]} 30. Rxf2 {[%clk 0:00:21]} 30...
Rxf2 {[%clk 0:00:23.3]} 31. Bxf2 {[%clk 0:00:21.9]} 31... Be5 {[%clk 0:00:23.2]}
32. Nxe5 {[%clk 0:00:14.1]} 32... dxe5 {[%clk 0:00:24.1]} 33. Qe2 {[%clk
0:00:13.4]} 33... Rf7 {[%clk 0:00:19.1]} 34. c4 {[%clk 0:00:13.4]} 34... Rg7+
{[%clk 0:00:19.4]} 35. Bg3 {[%clk 0:00:12.8]} 35... h4 {[%clk 0:00:20]} 36. Qh5
{[%clk 0:00:13]} 1-0

[Event "Early-Titled-Tuesday-Blitz-August-29-2023"]
[Site "Chess.com"]
[Date "2023.08.29"]
[Round "8"]
[White "GMKrikor"]
[Black "Alexei_Gubajdullin"]
[Result "1-0"]
[WhiteElo "2866"]
[BlackElo "2637"]
[TimeControl "180+1"]
[EndTime "9:27:00 PDT"]
[Termination "GMKrikor won by checkmate"]

1. Nf3 {[%clk 0:03:00.9]} 1... Nf6 {[%clk 0:02:53.1]} 2. c4 {[%clk 0:03:00.4]}
2... g6 {[%clk 0:02:52.9]} 3. Nc3 {[%clk 0:03:00.2]} 3... Bg7 {[%clk 0:02:53]}
4. e4 {[%clk 0:02:58.9]} 4... d6 {[%clk 0:02:53.2]} 5. d4 {[%clk 0:02:59.2]}
5... O-O {[%clk 0:02:53.7]} 6. h3 {[%clk 0:02:59.8]} 6... Na6 {[%clk 0:02:53.9]}
7. Be3 {[%clk 0:02:59.5]} 7... e5 {[%clk 0:02:53.4]} 8. d5 {[%clk 0:03:00.1]}
8... Nd7 {[%clk 0:02:41]} 9. g4 {[%clk 0:02:51.9]} 9... f5 {[%clk 0:02:37.6]}
10. gxf5 {[%clk 0:02:43.5]} 10... gxf5 {[%clk 0:02:37.4]} 11. exf5 {[%clk
0:02:41.3]} 11... Ndc5 {[%clk 0:02:37.4]} 12. Rg1 {[%clk 0:02:33.2]} 12... Bxf5
{[%clk 0:02:30.9]} 13. a3 {[%clk 0:02:25.2]} 13... Bg6 {[%clk 0:02:18.4]} 14. b4
{[%clk 0:01:12.2]} 14... Rxf3 {[%clk 0:02:16]} 15. bxc5 {[%clk 0:00:46]} 15...
Rxe3+ {[%clk 0:02:15.5]} 16. fxe3 {[%clk 0:00:46.9]} 16... Qh4+ {[%clk
0:02:14.2]} 17. Kd2 {[%clk 0:00:46.8]} 17... Nxc5 {[%clk 0:02:12.1]} 18. Qg4
{[%clk 0:00:43.6]} 18... Nb3+ {[%clk 0:02:04.4]} 19. Kd1 {[%clk 0:00:29]} 19...
Bh5 {[%clk 0:02:01.3]} 20. Qxh5 {[%clk 0:00:22]} 20... Qxh5+ {[%clk 0:02:00.9]}
21. Be2 {[%clk 0:00:22.7]} 21... Qxh3 {[%clk 0:01:55.7]} 22. Rb1 {[%clk
0:00:22.6]} 22... Qxe3 {[%clk 0:01:54.1]} 23. Rxg7+ {[%clk 0:00:19.7]} 23...
Kxg7 {[%clk 0:01:54]} 24. Rxb3 {[%clk 0:00:20.5]} 24... Qd4+ {[%clk 0:01:52]}
25. Kc2 {[%clk 0:00:19.3]} 25... b6 {[%clk 0:01:44.9]} 26. Nb5 {[%clk
0:00:17.5]} 26... Qf2 {[%clk 0:01:44.7]} 27. Kd2 {[%clk 0:00:16.3]} 27... Rf8
{[%clk 0:01:33.7]} 28. Nxc7 {[%clk 0:00:16.5]} 28... Qd4+ {[%clk 0:01:33.1]} 29.
Kc2 {[%clk 0:00:15.9]} 29... Qe4+ {[%clk 0:01:27.6]} 30. Kd2 {[%clk 0:00:13.3]}
30... Rf2 {[%clk 0:01:25.4]} 31. Ne6+ {[%clk 0:00:13.5]} 31... Kf6 {[%clk
0:01:22.7]} 32. Re3 {[%clk 0:00:13.3]} 32... Qb1 {[%clk 0:01:19.2]} 33. Nc7
{[%clk 0:00:06.3]} 33... e4 {[%clk 0:01:17.4]} 34. Nb5 {[%clk 0:00:02.5]} 34...
Ke5 {[%clk 0:01:14.9]} 35. Nc3 {[%clk 0:00:03.2]} 35... Qb2+ {[%clk 0:01:08.3]}
36. Ke1 {[%clk 0:00:03.3]} 36... Rf4 {[%clk 0:01:08.1]} 37. Nd1 {[%clk
0:00:01.5]} 37... Rh4 {[%clk 0:01:02.2]} 38. Nxb2 {[%clk 0:00:01.5]} 38... Kf4
{[%clk 0:00:59.3]} 39. Kd2 {[%clk 0:00:02.4]} 39... h5 {[%clk 0:00:58.5]} 40.
Nd1 {[%clk 0:00:03]} 40... Rh2 {[%clk 0:00:58.3]} 41. Nc3 {[%clk 0:00:03.5]}
41... h4 {[%clk 0:00:57.1]} 42. Rxe4+ {[%clk 0:00:04.1]} 42... Kf5 {[%clk
0:00:57.3]} 43. Re8 {[%clk 0:00:04.9]} 43... h3 {[%clk 0:00:57.4]} 44. Rf8+
{[%clk 0:00:05.6]} 44... Kg6 {[%clk 0:00:57.6]} 45. Rh8 {[%clk 0:00:06.5]} 45...
Kg7 {[%clk 0:00:57.6]} 46. Rh4 {[%clk 0:00:06.6]} 46... Rh1 {[%clk 0:00:57.6]}
47. Ne4 {[%clk 0:00:07]} 47... h2 {[%clk 0:00:57.7]} 48. Ke3 {[%clk 0:00:07.4]}
48... Kg6 {[%clk 0:00:55.1]} 49. Nf2 {[%clk 0:00:07.7]} 49... Ra1 {[%clk
0:00:54]} 50. Rxh2 {[%clk 0:00:07.9]} 50... Rxa3+ {[%clk 0:00:54.3]} 51. Bd3+
{[%clk 0:00:08.6]} 51... Kf6 {[%clk 0:00:54.2]} 52. Ne4+ {[%clk 0:00:09.1]}
52... Ke7 {[%clk 0:00:53.3]} 53. Rh7+ {[%clk 0:00:09.4]} 53... Kd8 {[%clk
0:00:53.6]} 54. Nxd6 {[%clk 0:00:10.1]} 54... b5 {[%clk 0:00:53.2]} 55. c5
{[%clk 0:00:10.3]} 55... b4 {[%clk 0:00:50.8]} 56. c6 {[%clk 0:00:10.5]} 56...
Rc3 {[%clk 0:00:50.4]} 57. Rd7# {[%clk 0:00:10.1]} 1-0

[Event "Early-Titled-Tuesday-Blitz-August-29-2023"]
[Site "Chess.com"]
[Date "2023.08.29"]
[Round "8"]
[White "GasconJR"]
[Black "dosto07"]
[Result "1-0"]
[WhiteElo "2661"]
[BlackElo "2466"]
[TimeControl "180+1"]
[EndTime "9:27:06 PDT"]
[Termination "GasconJR won by resignation"]

1. Nf3 {[%clk 0:03:00.9]} 1... d5 {[%clk 0:02:59]} 2. g3 {[%clk 0:02:59.6]} 2...
Nf6 {[%clk 0:02:58.5]} 3. Bg2 {[%clk 0:02:57.8]} 3... Bf5 {[%clk 0:02:59]} 4.
O-O {[%clk 0:02:56.9]} 4... e6 {[%clk 0:02:59.5]} 5. c4 {[%clk 0:02:55.3]} 5...
c6 {[%clk 0:02:59]} 6. cxd5 {[%clk 0:02:55.9]} 6... exd5 {[%clk 0:02:53.1]} 7.
d3 {[%clk 0:02:55]} 7... Be7 {[%clk 0:02:51.1]} 8. Qb3 {[%clk 0:02:55.1]} 8...
Qb6 {[%clk 0:02:50.5]} 9. Qc2 {[%clk 0:02:55.5]} 9... O-O {[%clk 0:02:48.9]} 10.
Nc3 {[%clk 0:02:55.2]} 10... h6 {[%clk 0:02:48.9]} 11. e4 {[%clk 0:02:46.3]}
11... Bh7 {[%clk 0:02:44.9]} 12. Be3 {[%clk 0:02:41.8]} 12... Qa6 {[%clk
0:02:38.6]} 13. Rfe1 {[%clk 0:02:32.5]} 13... Nbd7 {[%clk 0:02:33.7]} 14. exd5
{[%clk 0:02:28.5]} 14... cxd5 {[%clk 0:02:27.8]} 15. Bxh6 {[%clk 0:02:27]} 15...
Bxd3 {[%clk 0:02:13.8]} 16. Qd1 {[%clk 0:02:15.2]} 16... Bc5 {[%clk 0:02:09.5]}
17. Be3 {[%clk 0:02:12.7]} 17... Rfe8 {[%clk 0:01:59.5]} 18. Bxc5 {[%clk
0:01:56.7]} 18... Nxc5 {[%clk 0:01:59.4]} 19. Ne5 {[%clk 0:01:48.7]} 19... Be4
{[%clk 0:01:51]} 20. Nxe4 {[%clk 0:01:34.8]} 20... dxe4 {[%clk 0:01:50.6]} 21.
Ng4 {[%clk 0:01:32.7]} 21... Rad8 {[%clk 0:01:45.2]} 22. Nxf6+ {[%clk
0:01:20.1]} 22... Qxf6 {[%clk 0:01:44.9]} 23. Qc2 {[%clk 0:01:20.8]} 23... Nd3
{[%clk 0:01:34.3]} 24. Rxe4 {[%clk 0:01:19.2]} 24... Qxb2 {[%clk 0:01:10.2]} 25.
Qxb2 {[%clk 0:00:55.8]} 25... Nxb2 {[%clk 0:01:10.3]} 26. Rxe8+ {[%clk
0:00:56.4]} 26... Rxe8 {[%clk 0:01:10.5]} 27. Bxb7 {[%clk 0:00:56.1]} 27... Re2
{[%clk 0:01:07.6]} 28. Bd5 {[%clk 0:00:54.1]} 28... Rd2 {[%clk 0:01:01.4]} 29.
Bb3 {[%clk 0:00:45.1]} 29... a5 {[%clk 0:00:53.6]} 30. Rc1 {[%clk 0:00:19.5]}
30... a4 {[%clk 0:00:42.9]} 31. Rc8+ {[%clk 0:00:18.8]} 31... Kh7 {[%clk
0:00:42.3]} 32. Bxf7 {[%clk 0:00:19.3]} 32... Nd1 {[%clk 0:00:36.5]} 33. f4
{[%clk 0:00:15.4]} 33... Ne3 {[%clk 0:00:29.8]} 34. Be6 {[%clk 0:00:12.8]} 34...
a3 {[%clk 0:00:22.3]} 35. Rc3 {[%clk 0:00:10.9]} 35... Rd1+ {[%clk 0:00:16.2]}
36. Kf2 {[%clk 0:00:09.3]} 36... Rd6 {[%clk 0:00:12.4]} 37. Rxe3 {[%clk
0:00:09]} 37... Rd2+ {[%clk 0:00:10.4]} 38. Re2 {[%clk 0:00:09.3]} 38... Rb2
{[%clk 0:00:09.9]} 39. Rxb2 {[%clk 0:00:07.8]} 39... axb2 {[%clk 0:00:09]} 40.
Bf5+ {[%clk 0:00:08.7]} 40... g6 {[%clk 0:00:09.1]} 41. Bb1 {[%clk 0:00:09]} 1-0

[Event "Early-Titled-Tuesday-Blitz-August-29-2023"]
[Site "Chess.com"]
[Date "2023.08.29"]
[Round "8"]
[White "albi1999"]
[Black "Alphafischer2019"]
[Result "1-0"]
[WhiteElo "2672"]
[BlackElo "2526"]
[TimeControl "180+1"]
[EndTime "9:27:08 PDT"]
[Termination "albi1999 won by resignation"]

1. d4 {[%clk 0:03:00.9]} 1... Nf6 {[%clk 0:02:56.2]} 2. Bg5 {[%clk 0:03:01.4]}
2... Ne4 {[%clk 0:02:54.7]} 3. Bf4 {[%clk 0:03:01.3]} 3... g6 {[%clk 0:02:52.6]}
4. Nd2 {[%clk 0:02:58.9]} 4... Nxd2 {[%clk 0:02:52]} 5. Qxd2 {[%clk 0:02:59.8]}
5... d5 {[%clk 0:02:50.9]} 6. O-O-O {[%clk 0:02:58]} 6... h6 {[%clk 0:02:49.9]}
7. h4 {[%clk 0:02:55.9]} 7... Bg7 {[%clk 0:02:49.6]} 8. f3 {[%clk 0:02:52]} 8...
c6 {[%clk 0:02:44.9]} 9. e4 {[%clk 0:02:50.3]} 9... Qb6 {[%clk 0:02:39.3]} 10.
c3 {[%clk 0:02:42.3]} 10... Be6 {[%clk 0:02:37.2]} 11. Kb1 {[%clk 0:02:35.1]}
11... Nd7 {[%clk 0:02:35]} 12. Bd3 {[%clk 0:02:30.7]} 12... c5 {[%clk
0:02:30.8]} 13. exd5 {[%clk 0:02:26.3]} 13... Bxd5 {[%clk 0:02:30.1]} 14. c4
{[%clk 0:02:26.7]} 14... Be6 {[%clk 0:02:28.4]} 15. d5 {[%clk 0:02:26.9]} 15...
Bf5 {[%clk 0:02:28.2]} 16. Bxf5 {[%clk 0:02:26.2]} 16... gxf5 {[%clk 0:02:28.9]}
17. Re1 {[%clk 0:02:22.6]} 17... Qf6 {[%clk 0:02:23.7]} 18. Ne2 {[%clk
0:02:13.5]} 18... O-O-O {[%clk 0:02:12.3]} 19. Nc3 {[%clk 0:02:09.2]} 19... a6
{[%clk 0:02:10.7]} 20. Re2 {[%clk 0:01:56.1]} 20... Nb6 {[%clk 0:02:04.5]} 21.
Qd3 {[%clk 0:01:49.6]} 21... Rd7 {[%clk 0:01:57.2]} 22. h5 {[%clk 0:01:37.6]}
22... Rg8 {[%clk 0:01:35]} 23. Rd1 {[%clk 0:01:30.8]} 23... Bh8 {[%clk
0:01:04.8]} 24. Qe3 {[%clk 0:01:29]} 24... Kd8 {[%clk 0:00:43]} 25. Qxc5 {[%clk
0:01:26.3]} 25... Nc8 {[%clk 0:00:43.1]} 26. d6 {[%clk 0:01:17.5]} 26... e6
{[%clk 0:00:37.5]} 27. Qa5+ {[%clk 0:01:10.9]} 27... b6 {[%clk 0:00:35.3]} 28.
Qxa6 {[%clk 0:01:09]} 28... Qh4 {[%clk 0:00:33.7]} 29. Be3 {[%clk 0:01:03.7]}
29... Bxc3 {[%clk 0:00:18.6]} 30. bxc3 {[%clk 0:01:02.5]} 30... f4 {[%clk
0:00:14.3]} 31. Bxb6+ {[%clk 0:01:01]} 31... Nxb6 {[%clk 0:00:14.2]} 32. Qxb6+
{[%clk 0:01:01.9]} 32... Ke8 {[%clk 0:00:14.8]} 33. c5 {[%clk 0:01:01.8]} 33...
Qd8 {[%clk 0:00:10.5]} 34. Qb5 {[%clk 0:00:49.2]} 34... Rg5 {[%clk 0:00:10.6]}
35. Rb2 {[%clk 0:00:43.6]} 35... Qc8 {[%clk 0:00:09]} 36. Qd3 {[%clk 0:00:22.3]}
36... Rf5 {[%clk 0:00:05.2]} 37. Qd4 {[%clk 0:00:17.8]} 37... e5 {[%clk
0:00:03.9]} 38. Qe4 {[%clk 0:00:16.8]} 38... Ra7 {[%clk 0:00:03.4]} 39. c6
{[%clk 0:00:14.3]} 39... Rg5 {[%clk 0:00:03.4]} 40. d7+ {[%clk 0:00:14.8]} 40...
Rxd7 {[%clk 0:00:03.6]} 41. cxd7+ {[%clk 0:00:15.7]} 41... Qxd7 {[%clk
0:00:04.5]} 42. Rxd7 {[%clk 0:00:15.8]} 42... Kxd7 {[%clk 0:00:05.4]} 1-0